[Event "Live Chess"]
[Site "Chess.com"]
[Date "2024.06.01"]
[Round "-"]
[White "Brooms1989"]
[Black "JanMur7"]
[Result "1-0"]
[WhiteElo "1086"]
[BlackElo "2278"]
[TimeControl "300"]
[EndTime "11:17:10 PDT"]
[Termination "Brooms1989 won by checkmate"]

1. e4 {[%clk 0:04:58]} 1... g6 {[%clk 0:04:59.2]} 2. d4 {[%clk 0:04:55.9]} 2...
Bg7 {[%clk 0:04:59.1]} 3. Nf3 {[%clk 0:04:53.9]} 3... c5 {[%clk 0:04:58.1]} 4.
Be3 {[%clk 0:04:40.4]} 4... cxd4 {[%clk 0:04:57.2]} 5. Bxd4 {[%clk 0:04:38.9]}
5... Nc6 {[%clk 0:04:56.8]} 6. Bxg7 {[%clk 0:04:36.5]} 6... Qa5+ {[%clk
0:04:49]} 7. c3 {[%clk 0:04:30.2]} 7... Nf6 {[%clk 0:04:34.1]} 8. Bxh8 {[%clk
0:04:25.5]} 8... Nxe4 {[%clk 0:04:33]} 9. Bd3 {[%clk 0:04:07.8]} 9... Nc5 {[%clk
0:04:24.9]} 10. O-O {[%clk 0:04:00.6]} 10... d6 {[%clk 0:04:23.1]} 11. Bd4
{[%clk 0:03:56.5]} 11... Bg4 {[%clk 0:04:17.7]} 12. b4 {[%clk 0:03:48.6]} 12...
Nxb4 {[%clk 0:04:05.2]} 13. cxb4 {[%clk 0:03:45.8]} 13... Qxb4 {[%clk
0:04:04.8]} 14. Bxc5 {[%clk 0:03:42]} 14... dxc5 {[%clk 0:04:03.3]} 15. Be2
{[%clk 0:03:34.8]} 15... Rd8 {[%clk 0:04:01.2]} 16. Qb3 {[%clk 0:03:30.9]} 16...
Qe4 {[%clk 0:03:57.1]} 17. Qb2 {[%clk 0:03:01.6]} 17... f6 {[%clk 0:03:48.2]}
18. Nc3 {[%clk 0:02:52.8]} 18... Qf4 {[%clk 0:03:44.3]} 19. Rad1 {[%clk
0:02:45.2]} 19... Rb8 {[%clk 0:03:42.7]} 20. Qb5+ {[%clk 0:02:33.7]} 20... Kf8
{[%clk 0:03:39.9]} 21. Qxc5 {[%clk 0:02:29]} 21... h5 {[%clk 0:03:36.2]} 22. Rd7
{[%clk 0:02:23.1]} 22... Bxd7 {[%clk 0:03:32.8]} 23. Nd5 {[%clk 0:02:14.2]}
23... Re8 {[%clk 0:03:26.4]} 24. Nxf4 {[%clk 0:02:04.4]} 24... Kf7 {[%clk
0:03:21.7]} 25. Qxa7 {[%clk 0:02:00.1]} 25... h4 {[%clk 0:03:19.1]} 26. Nxh4
{[%clk 0:01:58.1]} 26... g5 {[%clk 0:03:18.1]} 27. Nf3 {[%clk 0:01:55.6]} 27...
gxf4 {[%clk 0:03:17]} 28. Nd4 {[%clk 0:01:50.7]} 28... Rg8 {[%clk 0:03:13.4]}
29. Bc4+ {[%clk 0:01:48.4]} 29... e6 {[%clk 0:03:11.1]} 30. Bxe6+ {[%clk
0:01:46.7]} 30... Bxe6 {[%clk 0:03:10]} 31. Nxe6 {[%clk 0:01:45.5]} 31... Kxe6
{[%clk 0:03:09.9]} 32. Qxb7 {[%clk 0:01:44.1]} 32... Rd8 {[%clk 0:03:08.5]} 33.
Qc6+ {[%clk 0:01:41.1]} 33... Kf7 {[%clk 0:03:06.7]} 34. Qc7+ {[%clk 0:01:39.2]}
34... Ke8 {[%clk 0:03:05.7]} 35. Qxd8+ {[%clk 0:01:38.3]} 35... Kxd8 {[%clk
0:03:05.6]} 36. Rb1 {[%clk 0:01:37.2]} 36... Kd7 {[%clk 0:03:03.3]} 37. a4
{[%clk 0:01:36.6]} 37... f3 {[%clk 0:03:00.7]} 38. gxf3 {[%clk 0:01:35]} 38...
Ke6 {[%clk 0:02:59.5]} 39. a5 {[%clk 0:01:34.1]} 39... Kf5 {[%clk 0:02:59.1]}
40. a6 {[%clk 0:01:33.7]} 40... Kg5 {[%clk 0:02:59]} 41. a7 {[%clk 0:01:33.3]}
41... Kh4 {[%clk 0:02:58.9]} 42. a8=Q {[%clk 0:01:31.7]} 42... Kh3 {[%clk
0:02:58.8]} 43. Rb7 {[%clk 0:01:26.3]} 43... Kh4 {[%clk 0:02:56]} 44. Rg7 {[%clk
0:01:24.8]} 44... Kh5 {[%clk 0:02:54.4]} 45. Qh8# {[%clk 0:01:24.2]} 1-0

[Event "Live Chess"]
[Site "Chess.com"]
[Date "2024.06.01"]
[Round "-"]
[White "Grace6363"]
[Black "MellowAesthetic"]
[Result "0-1"]
[WhiteElo "1167"]
[BlackElo "2065"]
[TimeControl "300"]
[EndTime "11:17:16 PDT"]
[Termination "MellowAesthetic won by resignation"]

1. d4 {[%clk 0:04:56.6]} 1... Nf6 {[%clk 0:04:58.6]} 2. c4 {[%clk 0:04:54.7]}
2... g6 {[%clk 0:04:58.1]} 3. Nc3 {[%clk 0:04:52.3]} 3... Bg7 {[%clk 0:04:57.3]}
4. Nf3 {[%clk 0:04:46.5]} 4... O-O {[%clk 0:04:55.5]} 5. Bg5 {[%clk 0:04:45.7]}
5... h6 {[%clk 0:04:52.7]} 6. Bh4 {[%clk 0:04:44.4]} 6... d6 {[%clk 0:04:52]} 7.
e4 {[%clk 0:04:42.6]} 7... c5 {[%clk 0:04:50.9]} 8. d5 {[%clk 0:04:40.9]} 8...
e6 {[%clk 0:04:46.2]} 9. Be2 {[%clk 0:04:35.7]} 9... exd5 {[%clk 0:04:44.6]} 10.
exd5 {[%clk 0:04:34.7]} 10... Bg4 {[%clk 0:04:41.4]} 11. O-O {[%clk 0:04:33.3]}
11... a6 {[%clk 0:04:39.4]} 12. a4 {[%clk 0:04:31.6]} 12... Nbd7 {[%clk
0:04:34]} 13. Qc2 {[%clk 0:04:29.3]} 13... Qc7 {[%clk 0:04:23.8]} 14. h3 {[%clk
0:04:24.4]} 14... Bxf3 {[%clk 0:04:21.7]} 15. Bxf3 {[%clk 0:04:23.2]} 15... Rfe8
{[%clk 0:04:11.7]} 16. Rae1 {[%clk 0:04:22.1]} 16... Rxe1 {[%clk 0:03:57.6]} 17.
Rxe1 {[%clk 0:04:20.7]} 17... Re8 {[%clk 0:03:57.3]} 18. Rxe8+ {[%clk
0:04:19.1]} 18... Nxe8 {[%clk 0:03:57.2]} 19. Qe4 {[%clk 0:04:11.8]} 19... Ndf6
{[%clk 0:03:32.4]} 20. Bxf6 {[%clk 0:03:58.8]} 20... Nxf6 {[%clk 0:03:30.9]} 21.
Qe3 {[%clk 0:03:43.3]} 21... Kf8 {[%clk 0:03:26]} 22. Ne2 {[%clk 0:03:42]} 22...
Nd7 {[%clk 0:03:10.3]} 23. b3 {[%clk 0:03:38.3]} 23... Ne5 {[%clk 0:03:03.9]}
24. g4 {[%clk 0:03:26.3]} 24... Nxf3+ {[%clk 0:01:50.3]} 25. Qxf3 {[%clk
0:03:24.9]} 25... Qd7 {[%clk 0:01:47.2]} 26. Ng3 {[%clk 0:03:14.5]} 26... b5
{[%clk 0:01:43.8]} 27. Ne4 {[%clk 0:03:10.4]} 27... bxa4 {[%clk 0:01:40.7]} 28.
bxa4 {[%clk 0:03:07.8]} 28... Be5 {[%clk 0:01:39.4]} 29. Qb3 {[%clk 0:02:50.9]}
29... Kg7 {[%clk 0:01:26.2]} 30. Kg2 {[%clk 0:02:43.5]} 30... g5 {[%clk
0:00:53.5]} 31. f3 {[%clk 0:02:37.5]} 31... f5 {[%clk 0:00:52.6]} 32. gxf5
{[%clk 0:02:22.1]} 32... Qxf5 {[%clk 0:00:52.5]} 33. Qe3 {[%clk 0:02:16.7]}
33... Kg6 {[%clk 0:00:45.3]} 34. Ng3 {[%clk 0:01:31.6]} 34... Qc2+ {[%clk
0:00:35.6]} 35. Qe2 {[%clk 0:01:07.9]} 35... Qxe2+ {[%clk 0:00:34.4]} 36. Nxe2
{[%clk 0:01:06.5]} 36... Kf5 {[%clk 0:00:34.3]} 37. Nc1 {[%clk 0:00:52.9]} 37...
Kf4 {[%clk 0:00:31.3]} 38. Nd3+ {[%clk 0:00:47.1]} 38... Kf5 {[%clk 0:00:30.8]}
39. Nxe5 {[%clk 0:00:41.3]} 39... Kxe5 {[%clk 0:00:30]} 40. Kg3 {[%clk
0:00:35.7]} 40... Kd4 {[%clk 0:00:23.7]} 41. h4 {[%clk 0:00:31.3]} 41... Kxc4
{[%clk 0:00:21.7]} 42. Kg4 {[%clk 0:00:26]} 42... Kxd5 {[%clk 0:00:21]} 43. hxg5
{[%clk 0:00:20.6]} 43... hxg5 {[%clk 0:00:20.4]} 44. Kxg5 {[%clk 0:00:19.8]}
44... c4 {[%clk 0:00:18.8]} 45. Kf4 {[%clk 0:00:18.8]} 45... Kd4 {[%clk
0:00:17.1]} 46. Kg3 {[%clk 0:00:17.2]} 46... c3 {[%clk 0:00:16.8]} 47. f4 {[%clk
0:00:15.8]} 47... c2 {[%clk 0:00:16.4]} 48. f5 {[%clk 0:00:15.2]} 48... c1=Q
{[%clk 0:00:16.1]} 49. Kg4 {[%clk 0:00:14.2]} 49... Qh6 {[%clk 0:00:15.1]} 50.
f6 {[%clk 0:00:12.6]} 50... Qxf6 {[%clk 0:00:13.8]} 0-1

[Event "Live Chess"]
[Site "Chess.com"]
[Date "2024.06.01"]
[Round "-"]
[White "KeithArkell"]
[Black "Isambard_Thomas"]
[Result "1-0"]
[WhiteElo "2520"]
[BlackElo "2163"]
[TimeControl "300"]
[EndTime "11:17:17 PDT"]
[Termination "KeithArkell won by resignation"]

1. d4 {[%clk 0:04:58.1]} 1... Nf6 {[%clk 0:04:58.4]} 2. Nf3 {[%clk 0:04:57.6]}
2... d5 {[%clk 0:04:57.5]} 3. c4 {[%clk 0:04:57]} 3... c6 {[%clk 0:04:56.7]} 4.
cxd5 {[%clk 0:04:56.5]} 4... cxd5 {[%clk 0:04:55.7]} 5. Nc3 {[%clk 0:04:56]}
5... e6 {[%clk 0:04:54.2]} 6. Bg5 {[%clk 0:04:54.9]} 6... Be7 {[%clk 0:04:52.6]}
7. e3 {[%clk 0:04:54.4]} 7... a6 {[%clk 0:04:51.8]} 8. Bd3 {[%clk 0:04:53.5]}
8... Nbd7 {[%clk 0:04:49.2]} 9. O-O {[%clk 0:04:52]} 9... h6 {[%clk 0:04:48]}
10. Bh4 {[%clk 0:04:50.7]} 10... g5 {[%clk 0:04:43.1]} 11. Bg3 {[%clk
0:04:49.4]} 11... Rg8 {[%clk 0:04:36.9]} 12. Rc1 {[%clk 0:04:48.1]} 12... Qa5
{[%clk 0:04:20.6]} 13. a3 {[%clk 0:04:46.2]} 13... h5 {[%clk 0:04:11.9]} 14. h4
{[%clk 0:04:41.1]} 14... gxh4 {[%clk 0:04:06.9]} 15. Bxh4 {[%clk 0:04:39.7]}
15... Ng4 {[%clk 0:04:02.7]} 16. Bxe7 {[%clk 0:04:37.9]} 16... Kxe7 {[%clk
0:04:02]} 17. g3 {[%clk 0:04:36.7]} 17... Ndf6 {[%clk 0:03:49.8]} 18. Qa4 {[%clk
0:04:34.5]} 18... Qxa4 {[%clk 0:03:48.4]} 19. Nxa4 {[%clk 0:04:34.4]} 19... Bd7
{[%clk 0:03:36]} 20. Nb6 {[%clk 0:04:33.1]} 20... Rad8 {[%clk 0:03:34.6]} 21.
Rc7 {[%clk 0:04:30.3]} 21... Ne4 {[%clk 0:03:12.4]} 22. Bxe4 {[%clk 0:04:26.9]}
22... dxe4 {[%clk 0:03:11.6]} 23. Ne5 {[%clk 0:04:24.9]} 23... Nxe5 {[%clk
0:03:10.3]} 24. dxe5 {[%clk 0:04:24.8]} 24... h4 {[%clk 0:03:05.4]} 25. Rd1
{[%clk 0:04:23.8]} 25... hxg3 {[%clk 0:03:01.6]} 26. Rdxd7+ {[%clk 0:04:22.6]}
26... Rxd7 {[%clk 0:02:58.5]} 27. Rxd7+ {[%clk 0:04:21.8]} 27... Ke8 {[%clk
0:02:57.4]} 28. Rxb7 {[%clk 0:04:21]} 28... gxf2+ {[%clk 0:02:55.5]} 29. Kxf2
{[%clk 0:04:20]} 29... Rg5 {[%clk 0:02:46.1]} 30. Nc4 {[%clk 0:04:18.8]} 30...
Rh5 {[%clk 0:02:40.1]} 31. Kg3 {[%clk 0:04:14.6]} 31... Rg5+ {[%clk 0:02:35.3]}
32. Kf4 {[%clk 0:04:13.4]} 32... Rg6 {[%clk 0:02:34.5]} 33. Nd6+ {[%clk
0:04:11.6]} 33... Kf8 {[%clk 0:02:32]} 34. Rxf7+ {[%clk 0:04:10.5]} 34... Kg8
{[%clk 0:02:29.9]} 35. Rf6 {[%clk 0:04:09.7]} 35... Kg7 {[%clk 0:02:20.7]} 36.
Rxg6+ {[%clk 0:04:08.3]} 36... Kxg6 {[%clk 0:02:20]} 37. Kxe4 {[%clk 0:04:07.4]}
37... Kg5 {[%clk 0:02:17.4]} 38. b4 {[%clk 0:04:06.5]} 1-0

[Event "Live Chess"]
[Site "Chess.com"]
[Date "2024.06.01"]
[Round "-"]
[White "LL220284LL"]
[Black "Colm_Buckley"]
[Result "1-0"]
[WhiteElo "2569"]
[BlackElo "1812"]
[TimeControl "300"]
[EndTime "11:17:17 PDT"]
[Termination "LL220284LL won by checkmate"]

1. d4 {[%clk 0:04:58.6]} 1... e6 {[%clk 0:04:58.3]} 2. Nf3 {[%clk 0:04:56.5]}
2... Nf6 {[%clk 0:04:56.8]} 3. Bg5 {[%clk 0:04:55.8]} 3... c5 {[%clk 0:04:55.1]}
4. e3 {[%clk 0:04:53.8]} 4... Qb6 {[%clk 0:04:51.7]} 5. Qc1 {[%clk 0:04:52.8]}
5... cxd4 {[%clk 0:04:46.8]} 6. exd4 {[%clk 0:04:51.8]} 6... Nc6 {[%clk
0:04:40.7]} 7. c3 {[%clk 0:04:49.9]} 7... h6 {[%clk 0:04:34.9]} 8. Bh4 {[%clk
0:04:48.6]} 8... g5 {[%clk 0:04:33.1]} 9. Bg3 {[%clk 0:04:47.4]} 9... Bg7 {[%clk
0:04:32.3]} 10. Nbd2 {[%clk 0:04:46.4]} 10... Qd8 {[%clk 0:04:23.1]} 11. Bd3
{[%clk 0:04:42.5]} 11... b6 {[%clk 0:04:19.9]} 12. O-O {[%clk 0:04:38.3]} 12...
Bb7 {[%clk 0:04:18.7]} 13. Nc4 {[%clk 0:04:36.6]} 13... O-O {[%clk 0:04:10]} 14.
Nd6 {[%clk 0:04:35.1]} 14... Bc8 {[%clk 0:04:02.8]} 15. h4 {[%clk 0:04:31.8]}
15... gxh4 {[%clk 0:03:55.4]} 16. Bxh4 {[%clk 0:04:22.6]} 16... Qc7 {[%clk
0:03:53.3]} 17. Nxc8 {[%clk 0:04:20.5]} 17... Raxc8 {[%clk 0:03:49.2]} 18. Bxf6
{[%clk 0:04:18.9]} 18... Bxf6 {[%clk 0:03:47.1]} 19. Qxh6 {[%clk 0:04:17.5]}
19... Ne7 {[%clk 0:03:35.4]} 20. Qh7# {[%clk 0:04:15.3]} 1-0

[Event "Live Chess"]
[Site "Chess.com"]
[Date "2024.06.01"]
[Round "-"]
[White "TC2304"]
[Black "educatedlad"]
[Result "1/2-1/2"]
[WhiteElo "2344"]
[BlackElo "1771"]
[TimeControl "300"]
[EndTime "11:17:36 PDT"]
[Termination "Game drawn - insufficient material"]

1. e4 {[%clk 0:04:54.5]} 1... c5 {[%clk 0:04:57.4]} 2. Nf3 {[%clk 0:04:53.3]}
2... e6 {[%clk 0:04:56.7]} 3. c3 {[%clk 0:04:50.8]} 3... d5 {[%clk 0:04:54.6]}
4. exd5 {[%clk 0:04:45.3]} 4... Qxd5 {[%clk 0:04:54.5]} 5. Na3 {[%clk
0:04:42.8]} 5... Nf6 {[%clk 0:04:53]} 6. Nb5 {[%clk 0:04:40.3]} 6... Qd8 {[%clk
0:04:39.2]} 7. d4 {[%clk 0:04:19.6]} 7... a6 {[%clk 0:04:38]} 8. Qa4 {[%clk
0:04:03.5]} 8... Bd7 {[%clk 0:04:33.1]} 9. Bg5 {[%clk 0:03:44.1]} 9... Nc6
{[%clk 0:04:20]} 10. Bxf6 {[%clk 0:03:27.7]} 10... gxf6 {[%clk 0:04:14.9]} 11.
dxc5 {[%clk 0:03:16.2]} 11... axb5 {[%clk 0:04:11]} 12. Qxb5 {[%clk 0:03:16.1]}
12... Nd4 {[%clk 0:03:55.3]} 13. Qd3 {[%clk 0:02:47.1]} 13... Nxf3+ {[%clk
0:03:46.1]} 14. Qxf3 {[%clk 0:02:44.9]} 14... Bc6 {[%clk 0:03:40.5]} 15. Qh5
{[%clk 0:02:40.5]} 15... Qd5 {[%clk 0:03:31.2]} 16. Qh3 {[%clk 0:02:39.9]} 16...
Bxc5 {[%clk 0:03:26.8]} 17. Be2 {[%clk 0:02:24.7]} 17... Qxg2 {[%clk 0:03:17.1]}
18. Qxg2 {[%clk 0:02:24.6]} 18... Bxg2 {[%clk 0:03:15.7]} 19. Rg1 {[%clk
0:02:24.4]} 19... Bd5 {[%clk 0:03:12.9]} 20. a3 {[%clk 0:02:19.5]} 20... Ke7
{[%clk 0:03:06.9]} 21. b4 {[%clk 0:02:17.8]} 21... Bb6 {[%clk 0:03:04.3]} 22. c4
{[%clk 0:02:16.4]} 22... Be4 {[%clk 0:03:01.4]} 23. c5 {[%clk 0:02:07.3]} 23...
Bc7 {[%clk 0:02:58.5]} 24. Bb5 {[%clk 0:01:48.3]} 24... Bxh2 {[%clk 0:02:51.8]}
25. Rg4 {[%clk 0:01:43.6]} 25... Bf5 {[%clk 0:02:49.3]} 26. Rh4 {[%clk
0:01:41.7]} 26... Be5 {[%clk 0:02:47.2]} 27. O-O-O {[%clk 0:01:40.6]} 27... Rhd8
{[%clk 0:02:41]} 28. Rxd8 {[%clk 0:01:31.6]} 28... Rxd8 {[%clk 0:02:39.5]} 29.
f4 {[%clk 0:01:25.6]} 29... Bd4 {[%clk 0:02:33.3]} 30. Rh1 {[%clk 0:01:04.4]}
30... Be3+ {[%clk 0:02:31.6]} 31. Kb2 {[%clk 0:01:03.9]} 31... Rd2+ {[%clk
0:02:26.8]} 32. Kb3 {[%clk 0:01:03.2]} 32... Bc2+ {[%clk 0:02:14.2]} 33. Kc3
{[%clk 0:01:00.9]} 33... Rd1 {[%clk 0:01:59.3]} 34. Rh3 {[%clk 0:00:55.3]} 34...
Bxf4 {[%clk 0:01:42.2]} 35. Kxc2 {[%clk 0:00:52.9]} 35... Rc1+ {[%clk
0:01:38.2]} 36. Kb2 {[%clk 0:00:51.2]} 36... h6 {[%clk 0:01:35.4]} 37. Rd3
{[%clk 0:00:49.7]} 37... Rg1 {[%clk 0:01:26]} 38. Rd7+ {[%clk 0:00:48.3]} 38...
Kf8 {[%clk 0:01:25.4]} 39. Rxb7 {[%clk 0:00:47.9]} 39... Bc1+ {[%clk 0:01:21.6]}
40. Kb3 {[%clk 0:00:41.3]} 40... Rg3+ {[%clk 0:01:19.1]} 41. Kc2 {[%clk
0:00:40.9]} 41... Bxa3 {[%clk 0:01:17.1]} 42. c6 {[%clk 0:00:40.5]} 42... Bxb4
{[%clk 0:01:12.2]} 43. c7 {[%clk 0:00:39.6]} 43... Rc3+ {[%clk 0:01:04]} 44. Kb2
{[%clk 0:00:39.2]} 44... Rc5 {[%clk 0:01:01.6]} 45. Rb8+ {[%clk 0:00:35.8]}
45... Kg7 {[%clk 0:00:57.7]} 46. c8=Q {[%clk 0:00:32.9]} 46... Rxc8 {[%clk
0:00:56.2]} 47. Rxc8 {[%clk 0:00:32.8]} 47... Bd6 {[%clk 0:00:54.5]} 48. Kc2
{[%clk 0:00:31.7]} 48... h5 {[%clk 0:00:52.8]} 49. Kd2 {[%clk 0:00:28]} 49... h4
{[%clk 0:00:50]} 50. Bf1 {[%clk 0:00:27.7]} 50... f5 {[%clk 0:00:46.2]} 51. Ke3
{[%clk 0:00:27.4]} 51... Kg6 {[%clk 0:00:42.9]} 52. Rd8 {[%clk 0:00:27]} 52...
Be5 {[%clk 0:00:40.2]} 53. Kf3 {[%clk 0:00:26.4]} 53... Kg5 {[%clk 0:00:38.2]}
54. Rg8+ {[%clk 0:00:25.7]} 54... Kf6 {[%clk 0:00:37.1]} 55. Rh8 {[%clk
0:00:24.6]} 55... Bg3 {[%clk 0:00:35.9]} 56. Rh7 {[%clk 0:00:22]} 56... e5
{[%clk 0:00:34.8]} 57. Bc4 {[%clk 0:00:19.9]} 57... e4+ {[%clk 0:00:34]} 58. Kg2
{[%clk 0:00:19.5]} 58... e3 {[%clk 0:00:32]} 59. Rxf7+ {[%clk 0:00:18.6]} 59...
Ke5 {[%clk 0:00:30.6]} 60. Re7+ {[%clk 0:00:17.8]} 60... Kd4 {[%clk 0:00:29.6]}
61. Be2 {[%clk 0:00:16.9]} 61... f4 {[%clk 0:00:27.7]} 62. Kf3 {[%clk
0:00:16.4]} 62... h3 {[%clk 0:00:25.9]} 63. Rh7 {[%clk 0:00:16.1]} 63... h2
{[%clk 0:00:24.3]} 64. Rh5 {[%clk 0:00:16]} 64... Kc3 {[%clk 0:00:22.7]} 65. Rh3
{[%clk 0:00:15.3]} 65... Kd2 {[%clk 0:00:21.7]} 66. Bf1 {[%clk 0:00:14.7]} 66...
Ke1 {[%clk 0:00:20.9]} 67. Be2 {[%clk 0:00:14.3]} 67... Kd2 {[%clk 0:00:19.5]}
68. Rh5 {[%clk 0:00:13.9]} 68... Ke1 {[%clk 0:00:18]} 69. Rh7 {[%clk 0:00:13.4]}
69... Kd2 {[%clk 0:00:16.7]} 70. Bb5 {[%clk 0:00:13.1]} 70... Ke1 {[%clk
0:00:15.3]} 71. Kg2 {[%clk 0:00:12.3]} 71... e2 {[%clk 0:00:13.9]} 72. Kf3
{[%clk 0:00:12]} 72... Kf1 {[%clk 0:00:13.1]} 73. Bxe2+ {[%clk 0:00:11.4]} 73...
Kg1 {[%clk 0:00:12.3]} 74. Bf1 {[%clk 0:00:06.8]} 74... h1=Q+ {[%clk 0:00:11.3]}
75. Rxh1+ {[%clk 0:00:06.5]} 75... Kxh1 {[%clk 0:00:10.9]} 76. Bd3 {[%clk
0:00:06.3]} 76... Kg1 {[%clk 0:00:10.3]} 77. Be4 {[%clk 0:00:06.2]} 77... Kh2
{[%clk 0:00:09.8]} 78. Bd5 {[%clk 0:00:06.1]} 78... Be1 {[%clk 0:00:09.1]} 79.
Bc6 {[%clk 0:00:06]} 79... Bd2 {[%clk 0:00:08.1]} 80. Bb7 {[%clk 0:00:05.9]}
80... Bb4 {[%clk 0:00:06.1]} 81. Ba8 {[%clk 0:00:05.8]} 81... Bc3 {[%clk
0:00:05.9]} 82. Bb7 {[%clk 0:00:05.7]} 82... Bb4 {[%clk 0:00:05.7]} 83. Ba6
{[%clk 0:00:05.6]} 83... Bc3 {[%clk 0:00:04.4]} 84. Bb5 {[%clk 0:00:05.5]} 84...
Bb4 {[%clk 0:00:04.2]} 85. Bc4 {[%clk 0:00:05.4]} 85... Bc3 {[%clk 0:00:04]} 86.
Bb3 {[%clk 0:00:05.3]} 86... Bb4 {[%clk 0:00:02.6]} 87. Ba2 {[%clk 0:00:05.2]}
87... Bc3 {[%clk 0:00:02.5]} 88. Bb1 {[%clk 0:00:05.1]} 88... Bb4 {[%clk
0:00:02.3]} 89. Ke4 {[%clk 0:00:05]} 89... Bc3 {[%clk 0:00:02.2]} 90. Bd3 {[%clk
0:00:04.9]} 90... Bb4 {[%clk 0:00:02.1]} 91. Be2 {[%clk 0:00:04.8]} 91... Bc3
{[%clk 0:00:02]} 92. Bd1 {[%clk 0:00:04.7]} 92... Bb4 {[%clk 0:00:01.9]} 93. Kd3
{[%clk 0:00:04.6]} 93... Bc3 {[%clk 0:00:01.8]} 94. Kc4 {[%clk 0:00:04.5]} 94...
Bb4 {[%clk 0:00:01.6]} 95. Kxb4 {[%clk 0:00:04]} 95... f3 {[%clk 0:00:01.5]} 96.
Kc4 {[%clk 0:00:03.9]} 96... f2 {[%clk 0:00:01.4]} 97. Be2 {[%clk 0:00:03.2]}
97... f1=Q {[%clk 0:00:01.3]} 98. Bxf1 {[%clk 0:00:02.9]} 1/2-1/2

[Event "Live Chess"]
[Site "Chess.com"]
[Date "2024.06.01"]
[Round "-"]
[White "JavaidMiah"]
[Black "PureDashingOctopus"]
[Result "0-1"]
[WhiteElo "1184"]
[BlackElo "2245"]
[TimeControl "300"]
[EndTime "11:17:51 PDT"]
[Termination "PureDashingOctopus won by resignation"]

1. c4 {[%clk 0:04:59.5]} 1... c5 {[%clk 0:04:58.4]} 2. Nc3 {[%clk 0:04:58.2]}
2... Nc6 {[%clk 0:04:57.6]} 3. Nf3 {[%clk 0:04:57.6]} 3... g6 {[%clk 0:04:56]}
4. g3 {[%clk 0:04:56.7]} 4... Bg7 {[%clk 0:04:55.2]} 5. Bg2 {[%clk 0:04:55.9]}
5... Nf6 {[%clk 0:04:54.5]} 6. O-O {[%clk 0:04:54.6]} 6... O-O {[%clk
0:04:54.1]} 7. d4 {[%clk 0:04:53.3]} 7... cxd4 {[%clk 0:04:52.5]} 8. Nxd4 {[%clk
0:04:52.6]} 8... Nxd4 {[%clk 0:04:51.8]} 9. Qxd4 {[%clk 0:04:51.8]} 9... d6
{[%clk 0:04:51.7]} 10. Qd3 {[%clk 0:04:48.2]} 10... Bf5 {[%clk 0:04:50]} 11. e4
{[%clk 0:04:46.5]} 11... Be6 {[%clk 0:04:49.2]} 12. Be3 {[%clk 0:04:29.1]} 12...
Rc8 {[%clk 0:04:44.9]} 13. Nd5 {[%clk 0:04:21.1]} 13... Nxd5 {[%clk 0:04:35.7]}
14. cxd5 {[%clk 0:04:14]} 14... Bd7 {[%clk 0:04:34.9]} 15. Rac1 {[%clk
0:04:12.6]} 15... Qa5 {[%clk 0:04:32.8]} 16. Qb3 {[%clk 0:04:02.8]} 16... Bb5
{[%clk 0:04:27.7]} 17. Rxc8 {[%clk 0:03:38.1]} 17... Rxc8 {[%clk 0:04:25.5]} 18.
Rc1 {[%clk 0:03:37.4]} 18... Rxc1+ {[%clk 0:04:24.3]} 19. Bxc1 {[%clk
0:03:33.8]} 19... Qe1+ {[%clk 0:04:23.6]} 0-1

[Event "Live Chess"]
[Site "Chess.com"]
[Date "2024.06.01"]
[Round "-"]
[White "ProfPoisson"]
[Black "sebmoran1"]
[Result "0-1"]
[WhiteElo "1236"]
[BlackElo "1509"]
[TimeControl "300"]
[EndTime "11:17:58 PDT"]
[Termination "sebmoran1 won by checkmate"]

1. e4 {[%clk 0:04:52.6]} 1... c5 {[%clk 0:04:58.2]} 2. Nc3 {[%clk 0:04:48.5]}
2... Nc6 {[%clk 0:04:57.4]} 3. f4 {[%clk 0:04:45.7]} 3... g6 {[%clk 0:04:52.5]}
4. Nf3 {[%clk 0:04:44.2]} 4... Bg7 {[%clk 0:04:51.4]} 5. Bb5 {[%clk 0:04:41.7]}
5... Nf6 {[%clk 0:04:50.1]} 6. Bxc6 {[%clk 0:04:40.2]} 6... bxc6 {[%clk
0:04:49.1]} 7. d3 {[%clk 0:04:39.5]} 7... O-O {[%clk 0:04:48.1]} 8. O-O {[%clk
0:04:38]} 8... Ba6 {[%clk 0:04:46.1]} 9. Qe1 {[%clk 0:04:35.5]} 9... c4 {[%clk
0:04:44.9]} 10. f5 {[%clk 0:04:21]} 10... cxd3 {[%clk 0:04:26.3]} 11. fxg6
{[%clk 0:04:11.1]} 11... fxg6 {[%clk 0:04:22.5]} 12. Qh4 {[%clk 0:04:07.9]}
12... dxc2 {[%clk 0:04:14.9]} 13. Bh6 {[%clk 0:04:01.4]} 13... Qb6+ {[%clk
0:04:06.7]} 14. Kh1 {[%clk 0:03:57]} 14... Qxb2 {[%clk 0:04:04.7]} 15. Bxg7
{[%clk 0:03:50.4]} 15... Bxf1 {[%clk 0:04:01.6]} 16. Ng5 {[%clk 0:03:46.5]}
16... h5 {[%clk 0:03:52.1]} 17. Rxf1 {[%clk 0:03:22.8]} 17... Kxg7 {[%clk
0:03:42.3]} 18. e5 {[%clk 0:02:47.2]} 18... Ng4 {[%clk 0:03:34.2]} 19. Ne6+
{[%clk 0:02:32.5]} 19... dxe6 {[%clk 0:03:29.6]} 20. Qxe7+ {[%clk 0:02:30.6]}
20... Kh6 {[%clk 0:03:23.8]} 21. Rg1 {[%clk 0:01:38.8]} 21... c1=Q {[%clk
0:03:16.4]} 22. h4 {[%clk 0:01:36.6]} 22... Qxg1+ {[%clk 0:03:11.5]} 23. Kxg1
{[%clk 0:01:33.7]} 23... Qc1+ {[%clk 0:03:09]} 24. Nd1 {[%clk 0:01:32]} 24...
Qxd1# {[%clk 0:03:07.8]} 0-1

[Event "Live Chess"]
[Site "Chess.com"]
[Date "2024.06.01"]
[Round "-"]
[White "Rusty_Bridges"]
[Black "jonny_dzz"]
[Result "0-1"]
[WhiteElo "1473"]
[BlackElo "1954"]
[TimeControl "300"]
[EndTime "11:18:06 PDT"]
[Termination "jonny_dzz won by resignation"]

1. e4 {[%clk 0:04:57.4]} 1... e6 {[%clk 0:04:58.9]} 2. d4 {[%clk 0:04:56]} 2...
d5 {[%clk 0:04:57.6]} 3. exd5 {[%clk 0:04:55.1]} 3... exd5 {[%clk 0:04:56.6]} 4.
Nf3 {[%clk 0:04:53.6]} 4... c6 {[%clk 0:04:56.1]} 5. Bd3 {[%clk 0:04:52.4]} 5...
Bd6 {[%clk 0:04:55.1]} 6. O-O {[%clk 0:04:51]} 6... Ne7 {[%clk 0:04:54.5]} 7.
Bg5 {[%clk 0:04:47.3]} 7... O-O {[%clk 0:04:50.8]} 8. Re1 {[%clk 0:04:46]} 8...
f6 {[%clk 0:04:47.6]} 9. Bh4 {[%clk 0:04:44.6]} 9... Bf5 {[%clk 0:04:45.8]} 10.
c4 {[%clk 0:04:42.4]} 10... Bxd3 {[%clk 0:04:39.9]} 11. Qxd3 {[%clk 0:04:42.3]}
11... dxc4 {[%clk 0:04:38.9]} 12. Qxc4+ {[%clk 0:04:41.2]} 12... Nd5 {[%clk
0:04:38.4]} 13. Nc3 {[%clk 0:04:37.6]} 13... Bf4 {[%clk 0:04:32.4]} 14. Nxd5
{[%clk 0:04:14.3]} 14... Qxd5 {[%clk 0:04:25.9]} 15. Qxd5+ {[%clk 0:04:11.7]}
15... cxd5 {[%clk 0:04:25.8]} 16. Re7 {[%clk 0:04:07.1]} 16... b6 {[%clk
0:04:23]} 17. Rae1 {[%clk 0:03:54.3]} 17... Nc6 {[%clk 0:04:21.6]} 18. Rc7
{[%clk 0:03:49.9]} 18... Nb4 {[%clk 0:04:17.9]} 19. Rb7 {[%clk 0:03:38.7]} 19...
Rfb8 {[%clk 0:04:14.2]} 20. Rxb8+ {[%clk 0:03:29.7]} 20... Rxb8 {[%clk
0:04:12.7]} 21. a3 {[%clk 0:03:28.8]} 21... Nd3 {[%clk 0:04:07.8]} 22. Re2
{[%clk 0:03:27]} 22... Rc8 {[%clk 0:04:04.8]} 23. g3 {[%clk 0:03:23.1]} 23...
Rc1+ {[%clk 0:04:01]} 24. Kg2 {[%clk 0:03:21.9]} 24... Bd6 {[%clk 0:03:58.4]}
25. g4 {[%clk 0:03:13.2]} 25... Nf4+ {[%clk 0:03:51.2]} 0-1